bitfinex-derivatives/quotes_SOLF0:USTF0_20250425
["timestamp","ask_amount","ask_price","bid_price","bid_amount"]
[1745617674490,19.9,150.2,150.04,105.91]
[1745617674790,1.15963278,150.19,150.04,73.25]
[1745617675196,1.15963278,150.19,150.05,33.29]
[1745617675497,19.9,150.2,150.05,39.96]
[1745617675997,1.15961346,150.19,150.05,39.96]
[1745617676193,1.15961346,150.19,149.98,481.5616]
[1745617676194,39.77,150.17,149.83,6.625]
[1745617676394,19.9,150.15,149.97,33.29]
[1745617676697,19.9,150.13,149.97,33.29]
[1745617676896,19.9,150.13,149.9,479.06]
[1745617676897,37.41961346,150.19,150.05,33.29]
[1745617677096,37.41961346,150.19,150.03,36.26]
[1745617677297,37.41961346,150.19,150.07,33.29]
[1745617677497,37.41961346,150.19,150.03,36.26]
[1745617677699,3.8213,150.18,150.07,33.29]
[1745617677894,6.6544,150.16,150.07,33.29]
[1745617678090,3.8213,150.18,150.07,69.55]
[1745617678394,3.8213,150.18,150.07,33.29]
[1745617678598,6.6546,150.15,150.07,33.29]
[1745617678995,6.655,150.14,150.07,33.29]
[1745617679402,23.7213,150.18,150.03,36.26]
[1745617679603,6.6562,150.12,150.07,33.29]
[1745617679797,6.6562,150.12,150.03,36.26]
[1745617679997,6.6562,150.12,150.07,33.29]
[1745617680201,3.8213,150.18,150.07,33.29]
[1745617680505,3.8213,150.18,150.04,36.26]
[1745617680805,3.8213,150.18,150.07,33.29]
[1745617680999,3.8213,150.18,150.04,36.28]
[1745617681295,3.8213,150.18,150.08,33.29]
[1745617681802,6.6554,150.14,150.08,33.29]
[1745617682002,3.8213,150.18,150.08,33.29]
[1745617682204,3.8213,150.18,150.09,33.29]
[1745617682403,3.8213,150.18,150.08,33.29]
[1745617682902,3.8213,150.18,150.03,36.28]
[1745617683099,3.8213,150.18,150.08,33.29]
[1745617683599,3.8213,150.18,150.03,36.28]
[1745617683895,3.8213,150.18,150.06,33.29]
[1745617684102,3.8213,150.18,150.07,33.29]
[1745617684703,3.8213,150.18,150.03,36.28]
[1745617684904,3.8213,150.18,150.08,33.29]
[1745617685904,6.6562,150.12,150.08,33.29]
[1745617686105,6.6562,150.12,150.09,33.29]
[1745617686301,499.32,150.11,149.84,6.625]
[1745617686505,503.1083,150.11,149.84,6.625]
[1745617686706,57.34054159,150.1,149.85,491.0104]
[1745617686898,37.44054159,150.1,149.85,491.0104]
[1745617687097,6.6595,150.04,149.85,491.0104]
[1745617687406,37.44054159,150.1,149.85,491.0104]
[1745617687709,6.6599,150.03,149.85,491.0104]
[1745617688005,6.6599,150.03,149.96,6.6626]
[1745617688205,6.6595,150.04,149.96,36.28]
[1745617688405,37.44054159,150.1,149.98,6.6617]
[1745617688608,37.44054159,150.1,149.97,3.8121]
[1745617688807,36.28,150.1,149.97,11.3198]
[1745617689108,3.7883,150.11,149.97,11.3198]
[1745617689504,6.6581,150.07,149.97,11.3198]
[1745617689799,3.7883,150.11,149.97,11.3198]
[1745617690000,6.6579,150.08,149.97,11.3198]
[1745617690201,6.6579,150.08,150.01,6.6604]
[1745617690408,3.7883,150.11,150.02,36.28]
[1745617691407,6.6582,150.07,150.02,36.28]
[1745617692508,6.6585,150.06,150.03,28.6045253]
[1745617692900,6.6582,150.07,150.03,28.6045253]
[1745617693406,36.28,150.13,150.03,28.6045253]
[1745617693603,6.6579,150.08,150.03,28.6045253]
[1745617694205,36.28,150.13,150.03,28.6045253]
[1745617694408,6.6581,150.07,150.03,28.6045253]
[1745617698010,6.6581,150.07,150.03,35.2643253]
[1745617698212,6.6585,150.06,150.03,28.6045253]
[1745617698809,6.6582,150.07,150.03,28.6045253]
[1745617699010,36.28,150.13,150.02,36.28]
[1745617699714,37.43992267,150.13,150.03,6.6596]
[1745617700012,6.6586,150.06,150.03,6.6596]
[1745617701006,0.3198,150.12,150.02,6.66]
[1745617701313,0.3198,150.12,150.0,28.6045253]
[1745617701514,6.6579,150.08,150.04,6.6591]
[1745617702110,37.43992267,150.13,150.03,28.6045253]
[1745617702411,40.1622,150.14,150.03,28.6045253]
[1745617702610,40.1622,150.14,150.0,28.6045253]
[1745617702611,6.657,150.1,150.07,6.658]
[1745617703011,40.1622,150.14,150.03,28.6045253]
[1745617703612,6.6584,150.07,150.03,35.2640253]
[1745617703811,6.6584,150.07,150.03,28.6045253]
[1745617704209,6.6586,150.06,150.02,6.6599]
[1745617704613,28.6045253,150.03,149.88,28.6045253]
[1745617704914,483.3813,150.05,149.9,28.6045253]
[1745617705115,36.28,150.06,149.93,28.6045253]
[1745617705317,6.6601,150.03,149.94,3.9958]
[1745617705616,36.28,150.06,149.97,6.6622]
[1745617705812,36.28,150.06,149.98,3.7527]
[1745617706009,13.3076,150.17,150.01,28.6045253]
[1745617706315,1.15998067,150.16,150.02,36.28]
[1745617706517,1.15998067,150.16,150.02,40.2139]
[1745617706715,1.15998067,150.16,150.02,46.8741]
[1745617706916,1.15998067,150.16,150.02,40.2139]
[1745617707416,1.15998067,150.16,150.03,6.6596]
[1745617707610,6.6575,150.09,150.03,6.6596]
[1745617707816,1.15998067,150.16,150.02,46.874]
[1745617708115,1.15998067,150.16,150.02,40.2139]
[1745617708318,6.6574,150.09,150.03,6.6597]
[1745617708712,36.52,150.14,150.02,40.2139]
[1745617709008,6.6572,150.09,150.03,6.6595]
[1745617709311,6.6581,150.07,150.02,40.2139]
[1745617709512,36.52,150.14,150.02,40.2139]
[1745617710015,6.658,150.08,150.02,40.2139]
[1745617710814,6.6581,150.07,150.02,40.2139]
[1745617711113,36.52,150.14,150.02,40.2139]
[1745617712818,6.6584,150.07,150.02,40.2139]
[1745617713118,36.52,150.14,150.02,40.2139]
[1745617713320,6.6598,150.03,150.02,3.9339]
[1745617717019,6.6596,150.04,150.02,3.9339]
[1745617717223,36.52,150.09,150.02,3.9339]
[1745617717426,36.52,150.09,150.02,10.594]
[1745617717625,36.52,150.09,150.02,3.9339]
[1745617718126,6.6581,150.07,150.02,3.9339]
[1745617719018,6.6581,150.07,150.02,10.594]
[1745617719222,6.6586,150.06,150.02,10.594]
[1745617719427,65.15164972,150.12,150.02,3.9339]
[1745617719922,6.6584,150.07,150.02,3.9339]
[1745617720225,65.15164972,150.12,150.02,3.9339]
[1745617720425,6.6585,150.07,150.02,3.9339]
[1745617720724,65.15164972,150.12,150.02,3.9339]
[1745617721425,6.6596,150.04,150.02,3.9339]
[1745617721928,6.6598,150.03,150.02,3.9339]
[1745617722322,65.15164972,150.12,150.02,3.9339]
[1745617723727,6.6588,150.06,150.02,10.5941]
[1745617723928,65.15164972,150.12,150.02,3.9339]
[1745617724128,36.52,150.12,150.02,3.9339]
[1745617724719,6.662,149.99,149.95,6.6632]
[1745617724929,35.32,150.04,149.93,7.857]
[1745617725329,6.6618,149.99,149.94,10.5773]
[1745617725529,35.32,150.04,149.94,3.9137]
[1745617726033,6.6602,150.03,149.94,3.9137]
[1745617726225,28.63164972,150.07,149.94,3.9137]
[1745617726528,6.6603,150.02,149.97,6.6621]
[1745617726728,28.63164972,150.07,149.94,3.9137]
[1745617727027,6.6601,150.03,149.98,6.6618]
[1745617727833,6.6603,150.02,149.97,41.9823]
[1745617728629,6.661,150.01,149.97,35.32]
[1745617729130,35.32,150.08,149.97,35.32]
[1745617729331,6.6611,150.01,149.97,35.32]
[1745617730227,6.6612,150.0,149.97,35.32]
[1745617730622,35.32,150.08,149.97,35.32]
[1745617730931,35.32,150.08,149.97,41.9822]
[1745617731431,6.6608,150.01,149.97,41.9822]
[1745617731930,6.6604,150.02,149.98,6.6619]
[1745617732130,35.32,150.08,149.97,35.32]
[1745617732632,6.6601,150.03,149.99,6.6614]
[1745617732829,6.6601,150.03,150.0,3.9719]
[1745617734328,35.32,150.08,150.0,3.9719]
[1745617734837,6.6605,150.02,150.0,3.9719]
[1745617735334,35.32,150.08,150.0,3.9719]
[1745617735531,6.6603,150.02,150.0,3.9719]
[1745617735835,53.21140117,150.08,150.0,3.9719]
[1745617736135,35.32,150.08,149.97,35.32]
[1745617736335,53.21140117,150.08,149.98,7.9395]
[1745617736528,17.89140117,150.08,150.0,6.6608]
[1745617736726,17.89140117,150.08,149.98,7.9395]
[1745617736935,17.89140117,150.09,149.98,7.9395]
[1745617737130,34.14,150.1,150.03,6.6596]
[1745617737737,6.6583,150.07,150.03,6.6596]
[1745617740133,6.6583,150.07,150.04,6.6594]
[1745617740332,6.6583,150.07,150.02,34.14]
[1745617740633,6.6578,150.08,150.02,34.14]
[1745617741036,17.89140117,150.11,150.02,34.14]
[1745617741339,6.6574,150.09,150.03,3.7528]
[1745617741538,17.89140117,150.11,150.03,3.7528]
[1745617741736,6.657,150.1,150.03,3.7528]
[1745617742035,6.657,150.1,150.05,6.6589]
[1745617742235,6.6565,150.11,150.06,3.6831]
[1745617742538,17.89140117,150.13,150.06,10.3414]
[1745617742732,6.6568,150.1,150.06,10.3414]
[1745617742938,17.89140117,150.13,150.06,3.6831]
[1745617743139,17.89140117,150.11,150.06,3.6831]
[1745617743339,6.6579,150.08,150.06,3.6831]
[1745617743838,17.89140117,150.11,150.06,3.6831]
[1745617744040,6.6574,150.09,150.06,3.6831]
[1745617745143,6.6568,150.1,150.06,10.3415]
[1745617745343,17.89140117,150.13,150.06,10.3415]
[1745617745647,6.6565,150.11,150.07,34.14]
[1745617745843,17.89140117,150.13,150.07,34.14]
[1745617746244,6.656,150.12,150.07,40.7978]
[1745617746543,17.89140117,150.13,150.07,34.14]
[1745617747645,17.89140117,150.13,150.09,6.6571]
[1745617748147,24.54710117,150.13,150.09,6.6571]
[1745617748445,17.89140117,150.13,150.09,6.6571]
[1745617749251,17.89140117,150.13,150.1,6.6566]
[1745617749653,17.89140117,150.15,150.1,6.6566]
[1745617749951,17.89140117,150.15,150.09,6.657]
[1745617751356,17.89140117,150.15,150.07,34.14]
[1745617751656,17.89140117,150.13,150.07,34.14]
[1745617751855,6.6565,150.11,150.08,6.6573]
[1745617752058,17.89140117,150.13,150.07,34.14]
[1745617752352,6.6576,150.08,150.07,34.14]
[1745617752757,17.89140117,150.11,150.07,34.14]
[1745617752958,6.6576,150.08,150.07,34.14]
[1745617753156,17.89140117,150.11,150.07,34.14]
[1745617753455,6.6576,150.08,150.07,34.14]
[1745617754656,6.6576,150.08,150.06,3.6831]
[1745617755257,17.89140117,150.11,150.06,10.3414]
[1745617755958,6.6577,150.08,150.06,3.6831]
[1745617757158,6.658,150.07,150.06,3.6831]
[1745617758661,11.44369482,150.09,150.06,3.6831]
[1745617759064,6.6576,150.08,150.06,3.6831]
[1745617762662,11.44369482,150.09,150.06,3.6831]
[1745617764066,18.10089482,150.09,150.06,3.6831]
[1745617764265,6.6572,150.09,150.06,15.12679482]
[1745617764767,6.6568,150.1,150.07,11.44369482]
[1745617765067,6.6568,150.1,150.07,18.10169482]
[1745617766468,11.44369482,150.15,150.09,11.44369482]
[1745617766768,11.44369482,150.15,150.1,11.44369482]
[1745617766968,6.6553,150.14,150.11,6.6562]
[1745617767169,11.44369482,150.15,150.1,11.44369482]
[1745617767370,11.44369482,150.15,150.12,11.44369482]
[1745617767667,18.09799482,150.16,150.13,6.655]
[1745617768470,18.09799482,150.16,150.12,6.6556]
[1745617768769,11.44369482,150.15,150.12,6.6556]
[1745617770568,18.09829482,150.15,150.12,6.6556]
[1745617772573,18.09829482,150.15,150.11,6.656]
[1745617772973,6.655,150.14,150.11,6.656]
[1745617773170,6.655,150.14,150.1,18.10019482]
[1745617774072,6.6555,150.13,150.1,18.10019482]
[1745617775272,6.6555,150.13,150.1,11.44369482]
[1745617775573,6.6555,150.13,150.09,43.24369482]
[1745617776075,6.6555,150.13,150.11,11.44369482]
[1745617776272,11.44369482,150.15,150.11,11.44369482]
[1745617776974,6.6555,150.13,150.11,11.44369482]
[1745617777774,6.6551,150.14,150.11,11.44369482]
[1745617778173,6.6551,150.14,150.11,18.09979482]
[1745617778478,6.6551,150.14,150.11,11.44369482]
[1745617778775,6.6554,150.13,150.11,11.44369482]
[1745617779375,6.6552,150.14,150.11,11.44369482]
[1745617782473,11.44369482,150.16,150.11,11.44369482]
[1745617782679,6.6554,150.13,150.11,11.44369482]
[1745617784279,6.6551,150.14,150.11,11.44369482]
[1745617786381,11.44369482,150.14,150.09,31.8]
[1745617787488,6.6561,150.12,150.09,31.8]
[1745617787685,11.44369482,150.14,150.09,31.8]
[1745617788387,11.44369482,150.14,150.09,38.4571]
[1745617789182,6.6556,150.13,150.09,38.4571]
[1745617789388,11.44369482,150.14,150.09,38.4571]
[1745617791084,11.44369482,150.14,150.1,6.6567]
[1745617791290,6.6558,150.12,150.09,31.8]
[1745617791484,6.6558,150.12,150.09,38.4569]
[1745617792291,11.44369482,150.14,150.09,31.8]
[1745617792790,11.44369482,150.14,150.09,43.24369482]
[1745617793191,6.656,150.12,150.09,31.8]
[1745617793390,6.656,150.12,150.09,43.24369482]
[1745617793587,11.44369482,150.15,150.09,43.24369482]
[1745617793890,6.6558,150.13,150.09,49.90069482]
[1745617794292,6.6561,150.12,150.09,43.24369482]
[1745617795192,7.7199,150.19,150.06,3.6831]
[1745617795397,11.44369482,150.09,150.06,3.6831]
[1745617795695,30.58,150.15,150.06,3.6831]
[1745617795897,11.44369482,150.11,150.06,3.6831]
[1745617797196,6.6571,150.1,150.06,3.6831]
[1745617798397,6.6573,150.09,150.06,3.6831]
[1745617799898,6.6573,150.09,150.07,11.44369482]
[1745617802699,6.6576,150.08,150.07,11.44369482]
[1745617802899,6.6576,150.08,150.06,3.6831]
[1745617802900,6.6576,150.08,150.06,11.44369482]
[1745617803694,6.6576,150.08,150.05,30.58]
[1745617803998,6.658,150.07,150.06,11.44369482]
[1745617804200,11.44369482,150.11,150.05,42.02369482]
[1745617804400,11.44369482,150.07,149.96,30.6]
[1745617804600,6.661,150.01,149.99,11.44369482]
[1745617805500,11.44369482,150.06,149.99,11.44369482]
[1745617805802,11.44369482,150.06,150.01,11.44369482]
[1745617806002,6.6593,150.05,150.01,11.44369482]
[1745617806203,11.44369482,150.06,149.97,30.6]
[1745617806401,11.44369482,150.06,150.0,11.44369482]
[1745617806600,6.6598,150.03,150.0,11.44369482]
[1745617806793,6.6598,150.03,149.99,11.44369482]
[1745617807104,11.44369482,150.06,149.99,11.44369482]
[1745617807403,6.6596,150.04,149.99,11.44369482]
[1745617808102,6.6596,150.04,149.98,6.662]
[1745617808103,6.66,150.03,149.98,11.44369482]
[1745617810201,11.44369482,150.02,149.97,42.04369482]
[1745617810402,11.44369482,150.0,149.96,6.6628]
[1745617810699,11.44369482,149.97,149.93,479.46]
[1745617811502,11.44369482,149.97,149.93,490.90369482]
[1745617811704,6.663,149.96,149.93,490.90369482]
[1745617812201,6.6638,149.94,149.85,479.68]
[1745617812402,6.6638,149.94,149.9,11.44369482]
[1745617812703,11.44369482,150.0,149.92,11.44369482]
[1745617812900,11.44369482,150.0,149.94,11.44369482]
[1745617813092,11.44369482,150.0,149.9,29.74]
[1745617813297,11.44369482,149.98,149.92,11.44369482]
[1745617814003,6.6641,149.94,149.92,11.44369482]
[1745617815003,6.6643,149.93,149.92,11.44369482]
[1745617815302,6.6643,149.93,149.91,11.44369482]
[1745617817904,6.6647,149.92,149.91,11.44369482]
[1745617819904,6.6643,149.93,149.91,11.44369482]
[1745617821004,6.664,149.94,149.91,11.44369482]
[1745617822406,11.44369482,149.98,149.91,11.44369482]
[1745617822805,11.44369482,149.98,149.91,18.10859482]
[1745617823107,6.6633,149.96,149.91,18.10859482]
[1745617823707,6.6634,149.95,149.91,18.10859482]
[1745617824003,11.44369482,149.98,149.91,18.10859482]
[1745617824198,6.6633,149.96,149.91,18.10859482]
[1745617824405,11.44369482,149.98,149.91,18.10859482]
[1745617824606,11.44369482,149.96,149.9,11.44369482]
[1745617825307,11.44369482,149.96,149.9,18.10909482]
[1745617825508,6.6641,149.94,149.9,18.10909482]
[1745617825908,6.6636,149.95,149.9,18.10909482]
[1745617827303,18.10679482,149.96,149.91,6.6648]
[1745617827503,18.10679482,149.96,149.9,11.44369482]
[1745617827504,11.44369482,149.96,149.9,11.44369482]
[1745617827809,11.44369482,149.94,149.9,11.44369482]
[1745617828507,18.10769482,149.94,149.9,11.44369482]
[1745617829306,18.10769482,149.94,149.9,18.10929482]
[1745617830109,18.10769482,149.94,149.9,11.44369482]
[1745617830508,6.6643,149.93,149.9,11.44369482]
[1745617831807,6.6648,149.92,149.9,11.44369482]
[1745617832012,11.44369482,149.94,149.88,15.22959482]
[1745617832406,11.44369482,149.94,149.88,21.89609482]
[1745617832407,6.665,149.92,149.88,21.89609482]
[1745617832713,6.665,149.92,149.88,15.22959482]
[1745617833805,11.44369482,149.94,149.88,15.22959482]
[1745617834318,6.6651,149.92,149.88,21.89579482]
[1745617835614,6.6652,149.91,149.88,21.89579482]
[1745617836115,6.6652,149.91,149.88,3.7859]
[1745617836414,6.6652,149.91,149.89,11.44369482]
[1745617837016,6.6648,149.92,149.89,11.44369482]
[1745617840018,6.6647,149.93,149.9,11.44369482]
[1745617840317,11.44369482,149.94,149.88,3.7859]
[1745617840318,11.44369482,149.96,149.92,11.44369482]
[1745617840528,6.664,149.94,149.92,11.44369482]
[1745617841117,6.664,149.94,149.91,11.44369482]
[1745617841317,6.664,149.94,149.92,11.44369482]
[1745617842617,6.664,149.94,149.91,11.44369482]
[1745617843925,6.6643,149.93,149.91,11.44369482]
[1745617844328,11.44369482,149.97,149.92,11.44369482]
[1745617844521,6.6636,149.95,149.94,11.44369482]
[1745617845224,6.6631,149.96,149.94,11.44369482]
[1745617845424,6.6631,149.96,149.95,11.44369482]
[1745617846724,6.6631,149.96,149.93,6.6642]
[1745617846926,6.6631,149.96,149.94,11.44369482]
[1745617847126,6.6634,149.95,149.94,11.44369482]
[1745617847728,6.6634,149.95,149.92,10.4498]
[1745617847928,6.6634,149.95,149.93,11.44369482]
[1745617848628,11.44369482,149.98,149.94,11.44369482]
[1745617848825,11.44369482,149.99,149.94,11.44369482]
[1745617849023,11.44369482,149.98,149.93,11.44369482]
[1745617849227,11.44369482,149.94,149.74,429.7258]
[1745617849427,28.58,149.99,149.89,11.44369482]
[1745617849728,11.44369482,149.94,149.89,11.44369482]
[1745617849926,6.6645,149.93,149.89,18.10949482]
[1745617850224,6.6645,149.93,149.9,28.58]
[1745617850423,6.6648,149.92,149.9,28.58]
[1745617851229,6.6651,149.91,149.9,28.58]
[1745617855425,13.324,149.99,149.9,28.58]
[1745617855627,11.44369482,149.96,149.91,11.44369482]
[1745617855932,6.6647,149.92,149.91,11.44369482]
[1745617856131,6.6647,149.92,149.9,28.58]
[1745617856333,6.6647,149.92,149.9,40.02369482]
[1745617856733,6.6651,149.91,149.9,40.02369482]
[1745617858133,6.6649,149.92,149.9,40.02369482]
[1745617859937,6.6645,149.93,149.9,40.02369482]
[1745617860934,6.664,149.94,149.9,46.68919482]
[1745617861139,6.664,149.94,149.92,11.44369482]
[1745617861938,11.44369482,149.98,149.92,11.44369482]
[1745617862640,6.6633,149.96,149.92,11.44369482]
[1745617862840,11.44369482,149.98,149.92,11.44369482]
[1745617863043,6.6633,149.96,149.92,18.10839482]
[1745617863942,94.99428192,150.02,149.9,28.58]
[1745617864244,11.44369482,149.94,149.88,11.44369482]
[1745617864634,6.6651,149.92,149.88,11.44369482]
[1745617864835,6.6651,149.92,149.89,11.44369482]
[1745617865043,11.44369482,149.94,149.89,11.44369482]
[1745617865546,6.6651,149.92,149.89,11.44369482]
[1745617865742,6.6651,149.92,149.88,6.6663]
[1745617865942,6.6651,149.92,149.9,11.44369482]
[1745617866143,11.44369482,149.96,149.91,28.6]
[1745617866548,6.6647,149.92,149.91,28.6]
[1745617870146,13.3226,150.0,149.91,28.6]
[1745617870343,11.44369482,149.98,149.92,11.44369482]
[1745617870649,6.6634,149.96,149.92,18.10829482]
[1745617871354,11.44369482,150.0,149.94,11.44369482]
[1745617871550,11.44369482,150.0,149.95,27.58]
[1745617872054,6.6624,149.98,149.95,27.58]
[1745617872648,6.6624,149.98,149.95,34.2431]
[1745617873353,6.6625,149.97,149.95,34.2431]
[1745617873555,11.44369482,150.0,149.95,34.2431]
[1745617873853,11.44369482,150.0,149.95,27.58]
[1745617874855,6.6627,149.97,149.95,27.58]
[1745617875354,13.3188,150.04,149.95,27.58]
[1745617875558,11.44369482,150.0,149.95,39.02369482]
[1745617876056,6.6621,149.98,149.96,6.6629]
[1745617876354,6.6621,149.98,149.95,39.02369482]
[1745617876554,6.6621,149.98,149.95,45.68689482]
[1745617877955,6.6621,149.98,149.95,39.02369482]
[1745617878552,6.6625,149.97,149.95,39.02369482]
[1745617878757,11.44369482,150.0,149.95,39.02369482]
[1745617879060,6.6624,149.98,149.95,39.02369482]
[1745617879859,11.44369482,150.0,149.95,39.02369482]
[1745617880261,6.6623,149.98,149.95,45.68709482]
[1745617880661,11.44369482,150.0,149.95,39.02369482]
[1745617881957,27.56,150.05,149.97,11.44369482]
[1745617882165,11.44369482,150.02,149.97,11.44369482]
[1745617882963,6.6609,150.01,149.97,18.10619482]
[1745617883262,11.44369482,150.02,149.97,18.10619482]
[1745617884064,6.6612,150.0,149.97,18.10619482]
[1745617884265,11.44369482,150.02,149.98,6.662]
[1745617884466,11.44369482,150.02,149.99,27.56]
[1745617885361,6.6609,150.01,149.99,27.56]
[1745617887569,18.10419482,150.02,149.99,34.2216]
[1745617887863,11.44369482,150.02,149.99,27.56]
[1745617888263,6.6609,150.01,149.99,27.56]
[1745617888765,11.44369482,150.02,149.99,27.56]
[1745617889561,6.6609,150.01,149.99,27.56]
[1745617891965,6.6604,150.02,149.99,27.56]
[1745617892675,6.6607,150.01,149.99,27.56]
[1745617892969,11.44369482,150.03,149.99,27.56]
[1745617893469,6.6605,150.02,149.99,27.56]
[1745617895165,6.6605,150.02,150.0,11.44369482]
[1745617895362,6.6607,150.01,150.0,11.44369482]
[1745617897468,6.6605,150.02,150.0,11.44369482]
[1745617897973,11.44369482,150.06,150.0,11.44369482]
[1745617898274,6.6601,150.03,150.0,11.44369482]
[1745617898673,11.44369482,150.06,150.0,11.44369482]
[1745617899374,6.6601,150.03,150.0,11.44369482]
[1745617900175,6.6603,150.02,149.99,34.2214]
[1745617900377,6.6603,150.02,150.0,11.44369482]
[1745617901173,6.66,150.03,150.0,11.44369482]
[1745617902074,6.6596,150.04,150.0,18.10479482]
[1745617902974,6.6596,150.04,150.0,6.6611]
[1745617903174,6.6596,150.04,150.01,11.44369482]
[1745617905476,11.44369482,150.04,149.99,39.00369482]
[1745617905775,11.44369482,150.04,149.99,27.56]
[1745617906275,6.6611,150.0,149.99,27.56]
[1745617908479,6.6628,149.97,149.95,11.7587]
[1745617908776,6.6628,149.97,149.96,26.54]
[1745617911178,6.6628,149.97,149.96,37.98369482]
[1745617911679,6.6622,149.98,149.96,37.98369482]
[1745617911879,11.44369482,150.01,149.96,37.98369482]
[1745617912178,6.6618,149.99,149.96,37.98369482]
[1745617912478,11.44369482,150.01,149.96,26.54]
[1745617913279,6.663,149.96,149.95,26.54]
[1745617913477,11.44369482,149.99,149.95,26.54]
[1745617913682,4.1325,150.03,149.95,26.54]
[1745617913888,6.6624,149.98,149.95,26.54]
[1745617914281,6.6627,149.97,149.95,26.54]
[1745617914981,4.1325,150.03,149.95,26.54]
[1745617915177,4.1325,150.03,149.95,37.98369482]
[1745617915481,11.44369482,150.0,149.95,37.98369482]
[1745617916083,6.6629,149.96,149.95,37.98369482]
[1745617916381,11.44369482,150.0,149.95,37.98369482]
[1745617916776,6.6629,149.96,149.95,26.54]
[1745617916982,6.6629,149.96,149.95,37.98369482]
[1745617918784,4.0768,150.04,149.95,37.98369482]
[1745617918983,15.52049482,150.04,149.98,11.44369482]
[1745617919177,3.9269,150.05,149.99,26.54]
[1745617919381,11.44369482,150.04,149.99,26.54]
[1745617919684,11.44369482,150.04,150.0,11.44369482]
[1745617919883,4.1199,150.08,150.0,11.44369482]
[1745617919884,6.6602,150.03,150.0,11.44369482]
[1745617920077,11.44369482,150.05,150.0,11.44369482]
[1745617920282,6.6601,150.03,150.0,11.44369482]
[1745617920479,11.44369482,150.05,150.0,11.44369482]
[1745617920884,6.6596,150.04,150.0,11.44369482]
[1745617921085,11.44369482,150.06,150.02,11.44369482]
[1745617921387,11.44369482,150.06,150.03,26.54]
[1745617922187,6.6591,150.05,150.03,26.54]
[1745617924285,11.44369482,150.06,150.03,26.54]
[1745617925088,6.6592,150.05,150.03,26.54]
[1745617926890,6.6594,150.04,150.03,26.54]
[1745617933294,6.6593,150.05,150.03,26.54]
[1745617933596,11.44369482,150.07,150.03,26.54]
[1745617933985,6.6594,150.04,150.03,26.54]
[1745617939402,11.44369482,150.05,150.0,25.88]
[1745617939606,11.44369482,150.03,150.0,25.88]
[1745617940101,6.6607,150.01,150.0,25.88]
[1745617940897,6.6614,150.0,149.98,491.22369482]
[1745617941096,6.6614,150.0,149.99,25.88]
[1745617941794,6.6609,150.01,149.99,25.88]
[1745617943003,6.6609,150.01,149.98,491.22369482]
[1745617943203,6.6609,150.01,149.99,25.88]
[1745617943799,11.44369482,150.05,149.99,25.88]
[1745617944503,11.44369482,150.05,149.99,37.32369482]
[1745617944704,6.661,150.01,149.99,37.32369482]
[1745617944906,11.44369482,150.05,149.99,25.88]
[1745617945106,11.44369482,150.05,149.99,32.5416]
[1745617946406,11.44369482,150.05,149.99,43.98529482]
[1745617946910,11.44369482,150.05,150.0,6.661]
[1745617947210,6.6601,150.03,150.0,6.661]
[1745617947406,7.9913,150.08,150.0,6.661]
[1745617947607,6.659,150.05,150.02,11.44369482]
[1745617947809,6.659,150.05,150.03,25.88]
[1745617948106,6.6588,150.06,150.03,32.5398]
[1745617949410,6.6589,150.05,150.03,32.5398]
[1745617951308,6.6589,150.05,150.03,25.88]
[1745617952515,6.6589,150.05,150.03,37.32369482]
[1745617952814,6.6589,150.05,150.03,43.98339482]
[1745617953115,6.6589,150.05,150.03,32.5397]
[1745617953412,6.6589,150.05,150.04,11.44369482]
[1745617954214,6.6589,150.05,150.03,37.32369482]
[1745617954416,6.6594,150.04,150.03,37.32369482]
[1745617964019,6.6594,150.04,150.03,25.88]
[1745617969823,6.6592,150.05,150.03,25.88]